bitfinex/quotes_BTCUSD_20240826
["timestamp","ask_amount","ask_price","bid_price","bid_amount"]
[1724656515195,0.00130751,63859.0,63858.0,2.53479966]
[1724656515443,0.00130751,63859.0,63858.0,2.56279966]
[1724656515677,0.00130751,63859.0,63858.0,3.06299366]
[1724656516151,0.00130751,63859.0,63858.0,3.04899366]
[1724656516384,0.00130751,63859.0,63858.0,3.06299366]
[1724656517609,0.00130751,63859.0,63858.0,3.04899366]
[1724656517893,0.00130751,63859.0,63858.0,3.07699366]
[1724656518119,0.00130751,63859.0,63858.0,3.06299366]
[1724656518383,0.00130751,63859.0,63858.0,3.04899366]
[1724656518620,0.00130751,63859.0,63858.0,3.07699366]
[1724656518863,0.00130751,63859.0,63858.0,3.06299366]
[1724656519132,0.00130751,63859.0,63858.0,3.07699366]
[1724656519391,0.00130751,63859.0,63858.0,3.06299366]
[1724656519639,0.00130751,63859.0,63858.0,3.07699366]
[1724656520954,0.00130751,63859.0,63858.0,3.04899366]
[1724656521203,0.00907501,63863.0,63862.0,1.410287]
[1724656521394,0.00907501,63863.0,63862.0,2.58249789]
[1724656522343,0.00907501,63863.0,63862.0,2.75819789]
[1724656522579,0.00907501,63866.0,63865.0,1.61022]
[1724656522873,0.00907501,63866.0,63865.0,2.74099666]
[1724656523113,0.00907501,63866.0,63865.0,2.78778236]
[1724656523343,0.00907501,63866.0,63865.0,3.10094236]
[1724656524275,0.1,63872.0,63871.0,1.793989]
[1724656524478,0.1,63872.0,63871.0,3.07529424]
[1724656524711,0.1,63872.0,63871.0,3.17325289]
[1724656524940,0.1,63872.0,63871.0,3.15638289]
[1724656525176,0.1,63872.0,63871.0,2.88862989]
[1724656525408,0.1,63872.0,63871.0,2.90262989]
[1724656525643,0.1,63872.0,63871.0,2.40103989]
[1724656526565,0.1,63872.0,63871.0,2.60523989]
[1724656526796,0.1,63872.0,63871.0,2.76633989]
[1724656527896,0.1,63872.0,63871.0,2.75233989]
[1724656528341,0.1,63872.0,63871.0,2.76633989]
[1724656530192,0.1,63872.0,63871.0,2.75233989]
[1724656530607,0.10090751,63872.0,63871.0,2.73833989]
[1724656530822,0.10090751,63872.0,63871.0,2.75233989]
[1724656531249,0.10090751,63872.0,63871.0,2.76633989]
[1724656531466,0.10090751,63872.0,63871.0,3.07947089]
[1724656533449,0.03891096,63872.0,63871.0,4.36028289]
[1724656533657,0.03891096,63872.0,63871.0,4.39306471]
[1724656533871,0.03891096,63872.0,63871.0,4.34628289]
[1724656534080,0.03891096,63872.0,63871.0,4.36028289]
[1724656534292,0.03057471,63872.0,63871.0,4.40703684]
[1724656534915,0.0004,63879.0,63878.0,1.974032]
[1724656535135,0.0004,63879.0,63878.0,3.15307024]
[1724656537095,0.0004,63879.0,63878.0,3.15951455]
[1724656537529,0.0004,63879.0,63878.0,3.18751455]
[1724656538194,0.0004,63879.0,63878.0,2.87441855]
[1724656538394,0.0004,63879.0,63878.0,2.49631855]
[1724656538641,0.0004,63879.0,63878.0,2.51031855]
[1724656539065,0.3661,63879.0,63878.0,1.77910832]
[1724656539588,0.3661,63879.0,63878.0,1.44301232]
[1724656539802,0.3661,63879.0,63878.0,1.42256801]
[1724656540244,0.3661,63879.0,63878.0,1.43656801]
[1724656540453,0.3661,63879.0,63878.0,1.73566401]
[1724656540666,0.3661,63879.0,63878.0,1.72166401]
[1724656540892,0.3661,63879.0,63878.0,1.74466401]
[1724656541099,0.3661,63879.0,63878.0,1.77266401]
[1724656541944,0.3661,63879.0,63878.0,1.75866401]
[1724656542573,0.36700751,63879.0,63878.0,1.75866401]
[1724656542788,0.36700751,63879.0,63878.0,1.77266401]
[1724656545163,0.20310751,63879.0,63878.0,1.77266401]
[1724656545402,0.00130751,63879.0,63878.0,1.98977824]
[1724656546778,0.00130751,63879.0,63878.0,1.97577824]
[1724656547002,0.00130751,63879.0,63878.0,1.98977824]
[1724656547278,0.38870751,63879.0,63878.0,1.77266401]
[1724656547495,0.38870751,63879.0,63878.0,1.75866401]
[1724656547921,0.38870751,63879.0,63878.0,1.77266401]
[1724656548587,0.38870751,63879.0,63878.0,1.75866401]
[1724656549469,0.38870751,63879.0,63878.0,1.77266401]
[1724656549712,0.38870751,63879.0,63878.0,1.74966401]
[1724656549954,0.38870751,63879.0,63878.0,0.49765]
[1724656549955,0.54525251,63879.0,63878.0,0.49765]
[1724656550587,0.85834351,63879.0,63878.0,0.48365]
[1724656550794,0.85834351,63879.0,63878.0,0.46965]
[1724656550795,1.17143451,63879.0,63878.0,0.46965]
[1724656551014,1.17143451,63879.0,63878.0,0.48565]
[1724656551431,1.17143451,63879.0,63878.0,0.48365]
[1724656551858,1.17143451,63879.0,63878.0,0.48465]
[1724656552068,1.17143451,63879.0,63878.0,0.48365]
[1724656552280,1.17143451,63879.0,63878.0,0.46965]
[1724656552485,1.17143451,63879.0,63878.0,0.47065]
[1724656552934,1.17143451,63879.0,63878.0,0.47165]
[1724656554006,0.85834351,63879.0,63878.0,0.47165]
[1724656554639,0.85934351,63879.0,63878.0,0.47165]
[1724656555123,0.85834351,63879.0,63878.0,0.47165]
[1724656555550,0.85934351,63879.0,63878.0,0.46965]
[1724656556621,1.17343451,63879.0,63878.0,0.46965]
[1724656557665,0.86034351,63879.0,63878.0,0.46965]
[1724656557872,0.85834351,63879.0,63878.0,0.46965]
[1724656559334,0.85934351,63879.0,63878.0,0.46965]
[1724656559964,0.85834351,63879.0,63878.0,0.46965]
[1724656560171,1.17243451,63879.0,63878.0,0.46965]
[1724656560607,0.85934351,63879.0,63878.0,0.46965]
[1724656560796,1.17143451,63879.0,63878.0,0.46965]
[1724656561009,1.17243451,63879.0,63878.0,0.46965]
[1724656561428,0.85934351,63879.0,63878.0,0.46965]
[1724656562051,1.17243451,63879.0,63878.0,0.46965]
[1724656562254,0.85834351,63879.0,63878.0,0.46965]
[1724656562681,1.17243451,63879.0,63878.0,0.46965]
[1724656563100,1.48552551,63879.0,63878.0,0.46965]
[1724656563330,1.48452551,63879.0,63878.0,0.46965]
[1724656563540,1.48552551,63879.0,63878.0,0.46965]
[1724656563983,1.48452551,63879.0,63878.0,0.46965]
[1724656564628,1.48552551,63879.0,63878.0,0.46965]
[1724656566925,1.48552551,63879.0,63878.0,0.29605]
[1724656567744,1.48452551,63879.0,63878.0,0.29605]
[1724656568157,1.48452551,63879.0,63878.0,0.29705]
[1724656568376,1.48452551,63879.0,63878.0,0.29605]
[1724656568797,1.64070352,63879.0,63878.0,0.29705]
[1724656569207,1.64470352,63879.0,63878.0,0.29805]
[1724656569582,1.64070352,63879.0,63878.0,0.29605]
[1724656569993,1.48852551,63879.0,63878.0,0.29705]
[1724656571207,0.86534351,63879.0,63878.0,0.29805]
[1724656571525,0.22030751,63879.0,63878.0,0.453598]
[1724656571743,0.00530751,63879.0,63878.0,1.25896801]
[1724656571952,0.00830751,63879.0,63878.0,1.25996801]
[1724656572158,0.2169,63884.0,63879.0,0.06907327]
[1724656572368,0.2169,63884.0,63883.0,0.156536]
[1724656572573,0.2169,63884.0,63883.0,0.469608]
[1724656572784,0.2169,63884.0,63883.0,0.156536]
[1724656573211,0.2169,63884.0,63881.0,0.156539]
[1724656573430,0.00391372,63883.0,63880.0,0.64323]
[1724656573750,0.2007,63882.0,63880.0,0.64323]
[1724656573932,0.16045489,63881.0,63880.0,0.64323]
[1724656574366,0.20331389,63881.0,63880.0,0.64323]
[1724656574588,0.52475489,63881.0,63880.0,0.64323]
[1724656574813,1.15091889,63881.0,63880.0,0.64323]
[1724656575281,1.46400089,63881.0,63880.0,0.64323]
[1724656575771,1.460087,63881.0,63880.0,0.64323]
[1724656576222,1.460087,63881.0,63880.0,0.64423]
[1724656576438,1.460087,63881.0,63880.0,0.64323]
[1724656579386,1.46099451,63881.0,63880.0,0.64323]
[1724656580679,1.45980608,63881.0,63880.0,0.64323]
[1724656584825,1.14672408,63881.0,63880.0,0.64323]
[1724656587476,0.19911908,63881.0,63880.0,0.64323]
[1724656587696,0.35566008,63881.0,63880.0,0.64323]
[1724656587929,0.19911908,63881.0,63880.0,0.64323]
[1724656590519,0.35566008,63881.0,63880.0,0.64323]
[1724656591719,0.00090751,63881.0,63880.0,0.64323]
[1724656592676,0.15744851,63881.0,63880.0,0.64323]
[1724656593164,0.47053051,63881.0,63880.0,0.64323]
[1724656593801,0.00090751,63881.0,63880.0,0.64323]
[1724656594014,0.15744851,63881.0,63880.0,0.64323]
[1724656594510,0.00090751,63881.0,63880.0,0.799773]
[1724656594718,0.00090751,63881.0,63880.0,1.11286]
[1724656594923,0.00090751,63881.0,63880.0,1.425947]
[1724656595129,0.00090751,63881.0,63880.0,1.448947]
[1724656595956,0.00090751,63881.0,63880.0,1.13586]
[1724656599285,0.00090751,63881.0,63880.0,1.448947]
[1724656599550,0.00090751,63881.0,63880.0,1.33916]
[1724656600779,0.00090751,63881.0,63880.0,1.80842501]
[1724656601004,0.00090751,63881.0,63880.0,1.96452501]
[1724656601209,0.00090751,63881.0,63880.0,2.27761201]
[1724656601405,0.00090751,63881.0,63880.0,1.96452501]
[1724656604413,0.00090751,63881.0,63880.0,1.96535001]
[1724656606324,0.00090751,63881.0,63880.0,2.27843701]
[1724656608498,0.00090751,63881.0,63880.0,2.28543701]
[1724656610010,0.00090751,63881.0,63880.0,2.29343701]
[1724656610230,0.00090751,63881.0,63880.0,2.60752401]
[1724656610663,0.00090751,63881.0,63880.0,2.60052401]
[1724656610899,0.00090751,63881.0,63880.0,2.59252401]
[1724656611136,0.00090751,63881.0,63880.0,2.60052401]
[1724656611354,0.00090751,63881.0,63880.0,2.69844503]
[1724656611579,0.00090751,63881.0,63880.0,2.69044503]
[1724656611989,0.00090751,63881.0,63880.0,2.70244503]
[1724656612231,0.00090751,63881.0,63880.0,2.71244503]
[1724656612657,0.00090751,63881.0,63880.0,2.70244503]
[1724656613092,0.00090751,63881.0,63880.0,2.71544503]
[1724656614368,0.00090751,63881.0,63880.0,3.74912403]
[1724656614573,0.00090751,63881.0,63880.0,3.18904403]
[1724656615791,0.00090751,63881.0,63880.0,3.17604403]
[1724656615988,0.00090751,63881.0,63880.0,3.19004403]
[1724656616200,0.00090751,63881.0,63880.0,3.17804403]
[1724656617363,0.00090751,63881.0,63880.0,3.50513103]
[1724656617786,0.00090751,63881.0,63880.0,3.16404403]
[1724656618203,0.00090751,63881.0,63880.0,3.17804403]
[1724656618641,0.00090751,63881.0,63880.0,3.49113103]
[1724656619451,0.00090751,63881.0,63880.0,3.50513103]
[1724656619860,0.00090751,63881.0,63880.0,3.17804403]
[1724656620065,0.00090751,63881.0,63880.0,3.19204403]
[1724656620268,0.00090751,63881.0,63880.0,3.17804403]
[1724656620477,0.00090751,63881.0,63880.0,3.50513103]
[1724656621268,0.00090751,63881.0,63880.0,3.19204403]
[1724656621925,0.00090751,63881.0,63880.0,3.50513103]
[1724656622147,0.00090751,63881.0,63880.0,3.19204403]
[1724656623206,0.00090751,63881.0,63880.0,2.71844503]
[1724656623419,0.00090751,63881.0,63880.0,2.88890603]
[1724656625788,0.00090751,63881.0,63880.0,2.71844503]
[1724656626024,0.00090751,63881.0,63880.0,2.62052401]
[1724656627204,0.00090751,63881.0,63880.0,2.71844507]
[1724656628366,0.00090751,63881.0,63880.0,2.71844634]
[1724656628615,0.00090751,63881.0,63880.0,2.62052401]
[1724656629500,0.00090751,63881.0,63880.0,2.51514678]
[1724656635224,0.0007191,63881.0,63880.0,2.51514678]
[1724656635485,0.0007191,63881.0,63880.0,2.35904678]
[1724656636095,0.0007191,63881.0,63880.0,2.67904678]
[1724656636940,0.0007191,63881.0,63880.0,2.49764678]
[1724656639723,0.0007191,63881.0,63880.0,2.67804678]
[1724656639937,0.0007191,63881.0,63880.0,3.96591978]
[1724656640367,0.00907501,63886.0,63885.0,1.609779]
[1724656640576,0.00907501,63886.0,63885.0,3.06618401]
[1724656642002,0.00907501,63886.0,63885.0,3.08018401]
[1724656642981,0.00907501,63886.0,63885.0,2.55706978]
[1724656643172,0.00907501,63886.0,63885.0,2.55806978]
[1724656643984,0.19877501,63886.0,63885.0,2.55706978]
[1724656644786,0.19877501,63886.0,63885.0,2.56345973]
[1724656645233,0.19877501,63886.0,63885.0,2.25039773]
[1724656648222,0.00907501,63886.0,63885.0,2.25039773]
[1724656649270,0.00907501,63886.0,63885.0,2.29722723]
[1724656649467,0.00907501,63886.0,63885.0,2.39609773]
[1724656649817,0.00907501,63886.0,63885.0,2.66004146]
[1724656650343,0.00907501,63886.0,63885.0,2.61421196]
[1724656651089,0.00907501,63886.0,63885.0,2.92727396]
[1724656651291,0.00907501,63886.0,63885.0,3.02087503]
[1724656651804,0.00907501,63886.0,63885.0,2.25039773]
[1724656653494,0.19967501,63886.0,63885.0,2.05039773]
[1724656654361,0.19967501,63886.0,63885.0,2.03639773]
[1724656654807,0.02166591,63896.0,63891.0,0.001]
[1724656655012,0.02166591,63896.0,63895.0,0.469519]
[1724656655224,0.02166591,63896.0,63895.0,1.89484301]
[1724656655453,0.02166591,63896.0,63895.0,1.91784301]
[1724656656757,0.02166591,63896.0,63895.0,2.23085601]
[1724656656973,0.02166591,63896.0,63895.0,2.6635641]
[1724656657182,0.02166591,63896.0,63895.0,2.7105061]
[1724656657602,0.02166591,63896.0,63895.0,3.09545423]
[1724656657829,0.02166591,63896.0,63895.0,3.00796008]
[1724656658688,0.02166591,63896.0,63895.0,3.70722108]
[1724656658900,0.00677059,63896.0,63895.0,3.70722108]
[1724656659417,0.1,63914.0,63898.0,2.47070323]
[1724656659631,0.1,63914.0,63913.0,0.782312]
[1724656659836,0.1,63914.0,63913.0,1.58148001]
[1724656659837,0.285,63914.0,63913.0,1.58148001]
[1724656660058,0.285,63914.0,63913.0,1.60448001]
[1724656660273,0.285,63914.0,63913.0,1.29155501]
[1724656660490,0.4318,63914.0,63913.0,1.29155501]
[1724656660699,0.4318,63914.0,63913.0,0.97863001]
[1724656661577,0.4328,63914.0,63913.0,1.29255501]
[1724656662659,0.4328,63914.0,63913.0,0.97963001]
[1724656663170,0.4328,63914.0,63913.0,0.98063001]
[1724656663171,0.4338,63914.0,63913.0,0.98063001]
[1724656663552,0.4338,63914.0,63913.0,1.29355501]
[1724656664833,0.43470751,63914.0,63913.0,1.29355501]
[1724656665784,0.43470751,63914.0,63913.0,1.60648001]
[1724656666267,0.43470751,63914.0,63913.0,1.27055501]
[1724656666268,0.42540751,63914.0,63913.0,1.27055501]
[1724656666488,0.42540751,63914.0,63913.0,0.95763001]
[1724656666729,0.42540751,63914.0,63913.0,1.27055501]
[1724656667619,0.42540751,63914.0,63913.0,1.29355501]
[1724656667823,0.28790751,63914.0,63913.0,1.60648001]
[1724656668689,0.28790751,63914.0,63913.0,1.91940501]
[1724656669558,0.10290751,63914.0,63913.0,1.91940501]
[1724656672823,0.28940751,63914.0,63913.0,1.91940501]
[1724656673095,0.43500751,63914.0,63913.0,1.91940501]
[1724656675242,0.28940751,63914.0,63913.0,1.91940501]
[1724656676364,0.10290751,63914.0,63913.0,1.91940501]
[1724656677299,0.10090751,63914.0,63913.0,2.23033001]
[1724656677690,0.10290751,63914.0,63913.0,2.23033001]
[1724656677889,0.10190751,63914.0,63913.0,2.23033001]
[1724656678102,0.10090751,63914.0,63913.0,2.40783001]
[1724656678576,0.10090751,63914.0,63913.0,2.41783001]
[1724656678956,0.10090751,63914.0,63913.0,2.42783001]
[1724656683403,0.10090751,63914.0,63913.0,2.42883001]
[1724656684529,0.10090751,63914.0,63913.0,2.74175501]
[1724656684953,0.10090751,63914.0,63913.0,2.89045501]
[1724656685953,0.10090751,63914.0,63913.0,2.92045501]
[1724656686155,0.10090751,63914.0,63913.0,3.01832501]
[1724656686354,0.10090751,63914.0,63913.0,3.63618801]
[1724656686515,0.10090751,63914.0,63913.0,3.57255801]
[1724656686716,0.10090751,63914.0,63913.0,3.13691501]
[1724656686976,0.10090751,63914.0,63913.0,3.01832501]
[1724656687526,0.10090751,63914.0,63913.0,2.67540001]
[1724656687727,0.1805,63920.0,63913.0,2.67540001]
[1724656687728,0.16473898,63920.0,63919.0,1.095136]
[1724656687954,0.16473898,63920.0,63919.0,1.58135801]
[1724656688357,0.16473898,63920.0,63919.0,1.26846201]
[1724656688576,0.16473898,63920.0,63919.0,1.89425401]
[1724656689054,0.16473898,63920.0,63919.0,1.89825401]
[1724656689745,0.16473898,63920.0,63919.0,1.58835801]
[1724656689976,0.31643898,63920.0,63919.0,1.29846201]
[1724656690414,0.31643898,63920.0,63919.0,1.27546201]
[1724656691317,0.31643898,63920.0,63919.0,0.96256601]
[1724656691529,0.31643898,63920.0,63919.0,0.64994]
[1724656691530,0.47288398,63920.0,63919.0,0.64994]
[1724656691754,0.31643898,63920.0,63919.0,0.64994]
[1724656692173,0.31643898,63920.0,63919.0,1.27546201]
[1724656692383,0.31643898,63920.0,63919.0,1.27146201]
[1724656692597,0.31643898,63920.0,63919.0,1.27246201]
[1724656692850,0.31643898,63920.0,63919.0,0.95656601]
[1724656693023,0.31643898,63920.0,63919.0,0.97856601]
[1724656693919,0.31743898,63920.0,63919.0,0.97856601]
[1724656694795,0.31643898,63920.0,63919.0,0.82211801]
[1724656694998,0.47388398,63920.0,63919.0,0.64294]
[1724656695180,0.47488398,63920.0,63919.0,0.64294]
[1724656695380,0.47388398,63920.0,63919.0,0.64294]
[1724656696467,0.47488398,63920.0,63919.0,0.64294]
[1724656696705,0.31743898,63920.0,63919.0,0.64294]
[1724656697143,0.31743898,63920.0,63919.0,0.799388]
[1724656697372,0.31743898,63920.0,63919.0,0.97856601]
[1724656697581,0.31643898,63920.0,63919.0,1.29146201]
[1724656697987,0.31843898,63920.0,63919.0,1.29146201]
[1724656698601,0.31843898,63920.0,63919.0,0.97856601]
[1724656698802,0.31943898,63920.0,63919.0,0.97856601]
[1724656699002,0.31943898,63920.0,63919.0,0.64294]
[1724656699204,0.32235051,63920.0,63919.0,0.64294]
[1724656699407,0.47679551,63920.0,63919.0,0.64294]
[1724656699611,0.47779551,63920.0,63919.0,0.64294]
[1724656700226,0.47679551,63920.0,63919.0,0.64294]
[1724656700431,0.47779551,63920.0,63919.0,0.64294]
[1724656700635,0.31743898,63920.0,63919.0,0.799388]
[1724656701054,0.31743898,63920.0,63919.0,1.26846201]
[1724656701261,0.31834649,63920.0,63919.0,1.29146201]
[1724656701880,0.31834649,63920.0,63919.0,0.97856601]
[1724656702292,0.32225788,63920.0,63919.0,0.64294]
[1724656702437,0.32225788,63920.0,63919.0,0.64594]
[1724656702644,0.32125788,63920.0,63919.0,0.64594]
[1724656703001,0.31734649,63920.0,63919.0,0.64294]
[1724656703208,0.31734649,63920.0,63919.0,0.64594]
[1724656703388,0.31734649,63920.0,63919.0,0.64294]
[1724656703839,0.31834649,63920.0,63919.0,0.64294]
[1724656704259,0.31734649,63920.0,63919.0,0.64294]
[1724656704700,0.31834649,63920.0,63919.0,0.64294]
[1724656705814,0.31834649,63920.0,63919.0,1.44818]
[1724656706871,0.31834649,63920.0,63919.0,1.135284]
[1724656711973,0.31834649,63920.0,63919.0,1.112284]
[1724656714571,0.31834649,63920.0,63919.0,1.113109]
[1724656715684,0.31834649,63920.0,63919.0,0.643765]
[1724656716165,0.31834649,63920.0,63919.0,0.800213]
[1724656716391,0.31834649,63920.0,63919.0,0.643765]
[1724656720281,0.31834649,63920.0,63919.0,0.800213]
[1724656720502,0.31834649,63920.0,63919.0,1.113109]
[1724656720713,0.16664649,63920.0,63919.0,1.092609]
[1724656720924,0.16664649,63920.0,63919.0,1.405505]
[1724656721573,0.16664649,63920.0,63919.0,1.092609]
[1724656724520,0.16645819,63920.0,63919.0,1.092609]
[1724656727493,0.16645819,63920.0,63919.0,0.623265]
[1724656728177,0.32290319,63920.0,63919.0,0.623265]
[1724656729785,0.66980683,63920.0,63919.0,0.623265]
[1724656730382,0.66880696,63920.0,63919.0,0.623265]
[1724656730590,0.80942357,63920.0,63919.0,0.623265]
[1724656730763,0.81142357,63920.0,63919.0,0.624265]
[1724656730977,0.81242357,63920.0,63919.0,0.625265]
[1724656731953,0.81042357,63920.0,63919.0,0.624265]
[1724656732153,0.67180696,63920.0,63919.0,0.624265]
[1724656732676,2.23844523,63920.0,63919.0,0.625265]
[1724656732876,2.33635201,63920.0,63919.0,0.625265]
[1724656733103,2.23844523,63920.0,63919.0,0.625265]
[1724656733390,2.33635467,63920.0,63919.0,0.625265]
[1724656734028,3.02337789,63920.0,63919.0,0.625265]
[1724656734232,3.02437789,63920.0,63919.0,0.625265]
[1724656734661,3.25507702,63920.0,63919.0,0.625265]
[1724656735067,3.25528369,63920.0,63919.0,0.625265]
[1724656735192,3.02458943,63920.0,63919.0,0.60916259]
[1724656735390,3.02358943,63920.0,63919.0,0.60816259]
[1724656735621,3.02058943,63920.0,63919.0,0.000825]
[1724656735840,0.1876,63900.0,63899.0,0.000825]
[1724656736048,0.53459191,63900.0,63899.0,0.000825]
[1724656736936,0.53859191,63900.0,63899.0,0.000825]
[1724656738242,0.65562665,63900.0,63899.0,0.157321]
[1724656738450,0.66062665,63900.0,63899.0,0.000825]
[1724656740129,0.66059832,63900.0,63899.0,0.000825]
[1724656740542,1.32606391,63900.0,63899.0,0.000825]
[1724656740762,1.61823227,63900.0,63899.0,0.000825]
[1724656740961,2.4170757,63900.0,63899.0,0.000825]
[1724656741185,2.27650734,63900.0,63899.0,0.000825]
[1724656741598,2.27150734,63900.0,63899.0,0.000825]
[1724656742045,2.27850734,63900.0,63899.0,0.001825]
[1724656742461,2.28950734,63900.0,63899.0,0.002825]
[1724656743150,2.28961218,63900.0,63899.0,0.002825]
[1724656743583,0.156514,63892.0,63887.0,0.1504]
[1724656743790,2.43335465,63891.0,63887.0,0.30657801]
[1724656743993,2.42944133,63890.0,63887.0,0.30657801]
[1724656744201,2.42944284,63889.0,63887.0,0.30657801]
[1724656744407,2.42944284,63888.0,63887.0,0.30657801]
[1724656746392,2.44144284,63888.0,63887.0,0.30757801]
[1724656746815,2.45344284,63888.0,63887.0,0.30757801]
[1724656748146,1.55107884,63888.0,63887.0,0.22890893]
[1724656748586,1.55107884,63888.0,63887.0,0.15717801]
[1724656749657,1.55107884,63888.0,63887.0,0.15800301]
[1724656749909,2.20934884,63888.0,63887.0,0.001825]
[1724656750122,0.3423,63887.0,63873.0,0.1764]
[1724656750341,0.156551,63877.0,63873.0,0.33257801]
[1724656750595,0.99046669,63876.0,63873.0,0.15617801]
[1724656750816,0.15739496,63874.0,63873.0,0.15617801]
[1724656751037,0.99426169,63874.0,63873.0,0.15617801]
[1724656751245,0.83686673,63874.0,63873.0,0.15617801]
[1724656751474,1.30262669,63874.0,63873.0,0.15617801]
[1724656751897,1.65122165,63874.0,63873.0,0.15617801]
[1724656752374,1.18071069,63874.0,63873.0,0.15617801]
[1724656752577,1.02715269,63874.0,63873.0,0.15617801]
[1724656752789,1.18371069,63874.0,63873.0,0.15617801]
[1724656752991,1.18371069,63874.0,63873.0,0.17917801]
[1724656753207,1.18371069,63874.0,63873.0,0.15617801]
[1724656753208,1.49682669,63874.0,63873.0,0.15617801]
[1724656754077,1.49682669,63874.0,63872.0,0.000825]
[1724656754078,1.113902,63873.0,63872.0,0.000825]
[1724656754306,1.113902,63873.0,63858.0,0.1541]
[1724656754307,0.156578,63866.0,63859.0,0.622493]
[1724656754536,0.13972404,63864.0,63860.0,0.15617801]
[1724656754756,1.18158343,63865.0,63860.0,0.15617801]
[1724656754757,0.1799,63862.0,63860.0,0.15617801]
[1724656754973,0.83312562,63861.0,63860.0,0.15617801]
[1724656755189,0.83312562,63861.0,63855.0,0.00825]
[1724656755410,0.156597,63858.0,63855.0,0.16442801]
[1724656755638,0.34706362,63857.0,63856.0,0.96158401]
[1724656755860,0.34706362,63857.0,63856.0,1.27478801]
[1724656756083,0.34706362,63857.0,63856.0,1.58799201]
[1724656756736,0.46338774,63857.0,63856.0,1.58799201]
[1724656756949,0.46338774,63857.0,63856.0,1.61099201]
[1724656757218,0.34706362,63857.0,63856.0,1.61099201]
[1724656757668,0.34706362,63857.0,63856.0,1.29778801]
[1724656758288,0.35106362,63857.0,63856.0,1.29778801]
[1724656758528,0.34806362,63857.0,63856.0,1.29778801]
[1724656758938,0.35006362,63857.0,63856.0,1.29778801]
[1724656759560,0.35006362,63857.0,63856.0,1.61099201]
[1724656759987,0.48969585,63857.0,63856.0,1.61199201]
[1724656760217,0.35006362,63857.0,63856.0,1.77810201]
[1724656760426,0.44304918,63857.0,63856.0,1.77810201]
[1724656760641,0.003,63857.0,63856.0,1.77810201]
[1724656760881,0.002,63857.0,63856.0,2.09130601]
[1724656761111,0.04949321,63857.0,63856.0,2.09213101]
[1724656761339,0.01082664,63859.0,63858.0,0.670791]
[1724656761565,0.01082664,63859.0,63858.0,1.49816301]
[1724656761786,0.06973853,63861.0,63860.0,0.470777]
[1724656761996,0.06973853,63861.0,63860.0,1.82187922]
[1724656762235,0.06973853,63861.0,63860.0,2.13506422]
[1724656762463,0.44008646,63861.0,63860.0,2.13506422]
[1724656762907,0.15692431,63876.0,63874.0,0.156556]
[1724656763126,0.15692431,63876.0,63875.0,0.31273301]
[1724656763345,0.98999093,63876.0,63875.0,0.31273301]
[1724656763777,0.83306662,63876.0,63875.0,0.15617801]
[1724656763983,0.98999093,63876.0,63875.0,0.15617801]
[1724656764896,0.99499093,63876.0,63875.0,0.15617801]
[1724656765106,0.83806662,63876.0,63875.0,0.31273301]
[1724656765767,0.84206662,63876.0,63875.0,0.31273301]
[1724656765987,0.99901515,63876.0,63875.0,0.62584401]
[1724656766194,0.99903748,63876.0,63875.0,0.63240263]
[1724656766417,0.84206662,63876.0,63875.0,0.63240263]
[1724656766629,0.84206662,63876.0,63875.0,1.44072463]
[1724656766843,0.84206662,63876.0,63875.0,1.61782463]
[1724656767067,0.35611109,63876.0,63875.0,1.61782463]
[1724656767727,0.156515,63892.0,63885.0,0.15653]
[1724656767937,0.46876099,63887.0,63886.0,0.15617801]
[1724656768146,0.83295893,63887.0,63886.0,0.15617801]
[1724656769424,0.83895893,63887.0,63886.0,0.15617801]
[1724656770905,0.83595893,63887.0,63886.0,0.15617801]
[1724656771784,0.83995893,63887.0,63886.0,0.15617801]
[1724656772022,0.83595893,63887.0,63886.0,0.15617801]
[1724656772264,0.83595386,63887.0,63886.0,0.15617801]
[1724656772528,0.83995386,63887.0,63886.0,0.15617801]
[1724656772732,0.83995241,63887.0,63886.0,0.15617801]
[1724656772958,1.02255241,63887.0,63886.0,0.15617801]
[1724656773177,1.02346102,63887.0,63886.0,0.15617801]
[1724656774251,1.02346248,63887.0,63886.0,0.15617801]
[1724656774470,1.17356248,63887.0,63883.0,0.00664516]
[1724656774687,0.31381974,63885.0,63884.0,0.13624254]
[1724656774906,1.14677361,63885.0,63884.0,0.13624254]
[1724656775988,0.98948487,63885.0,63884.0,0.13624254]
[1724656776213,0.99148487,63885.0,63884.0,0.13624254]
[1724656777346,1.30454687,63885.0,63884.0,0.13624254]
[1724656777577,0.99148487,63885.0,63884.0,0.13624254]
[1724656778269,0.99248487,63885.0,63884.0,0.13624254]
[1724656778472,1.02748558,63885.0,63884.0,0.13624254]
[1724656779050,1.34054758,63885.0,63884.0,0.13624254]
[1724656779275,1.02748558,63885.0,63884.0,0.13624254]
[1724656781548,0.156543,63880.0,63879.0,0.00662365]
[1724656781765,0.156543,63880.0,63879.0,0.15617801]
[1724656781766,0.86773411,63880.0,63879.0,0.15617801]
[1724656781976,0.156548,63878.0,63877.0,0.1455]
[1724656782182,1.02428211,63878.0,63877.0,0.15617801]
[1724656782812,0.15655,63877.0,63876.0,0.00018845]
[1724656783032,0.156566,63871.0,63863.0,0.313169]
[1724656783244,0.15767508,63869.0,63865.0,0.156579]
[1724656783459,0.83295387,63868.0,63866.0,0.15617801]
[1724656783636,0.15767508,63869.0,63866.0,0.15617801]
[1724656783637,0.83295387,63867.0,63866.0,0.15617801]
[1724656783850,0.86789073,63867.0,63866.0,0.15617801]
[1724656784054,0.86789073,63867.0,63866.0,0.17917801]
[1724656784258,0.86789073,63867.0,63866.0,0.33575501]
[1724656785087,1.02658999,63867.0,63866.0,0.64891001]
[1724656785299,0.86989073,63867.0,63866.0,0.64891001]
[1724656785513,1.02762615,63867.0,63866.0,0.33575501]
[1724656785717,0.86989073,63867.0,63866.0,0.33575501]
[1724656786341,0.86989073,63867.0,63866.0,0.64891001]
[1724656787387,0.86989073,63867.0,63866.0,0.96206501]
[1724656787878,0.86989073,63867.0,63866.0,1.27522001]
[1724656788110,0.38400097,63867.0,63866.0,1.27522001]
[1724656791255,0.38400097,63867.0,63866.0,1.8064913]
[1724656791700,0.37200093,63867.0,63866.0,3.3707563]
[1724656791916,0.10706595,63867.0,63866.0,3.3707563]
[1724656792334,0.03593686,63867.0,63866.0,3.3707563]
[1724656792544,0.10706759,63867.0,63866.0,3.2027353]
[1724656792819,0.03693686,63867.0,63866.0,3.2027353]
[1724656793094,0.03593686,63867.0,63866.0,3.2027353]
[1724656793974,0.03493686,63867.0,63866.0,3.2027353]
[1724656794177,0.03593686,63867.0,63866.0,3.2027353]
[1724656794401,0.03693686,63867.0,63866.0,3.2057353]
[1724656794609,0.03593686,63867.0,63866.0,3.2027353]
[1724656794815,0.03593686,63867.0,63866.0,3.1257353]
[1724656794816,0.03493686,63867.0,63866.0,3.1257353]